[Event "2nd Cambridge Open 2024"]
[Site "Cambridge"]
[Date "2024.02.20"]
[Round "3.6"]
[White "Woltery, Nicolai"]
[Black "Shafi, Declan"]
[Result "1-0"]
[ECO "A28"]
[WhiteElo "1979"]
[BlackElo "2219"]
[Annotator "RC"]
[PlyCount "67"]
[EventDate "2024.02.18"]
[EventType "swiss"]
[EventCountry "ENG"]
[SourceTitle "playchess.com"]
[Source "ChessBase"]
[SourceQuality "1"]
[TimeControl "5400+30"]

1. c4 {[%emt 0:01:07]} Nf6 {[%emt 0:00:05]} 2. Nc3 {[%emt 0:00:17]} e5 {[%emt 0:00:11]} 3. Nf3 {[%emt 0:00:19]} Nc6 {[%emt 0:00:09]} 4. e4 {[%emt 0:01:30]} Bc5 {[%emt 0:01:39]} 5. Nxe5 {[%emt 0:00:31]} Nxe5 {[%emt 0:08:06]} 6. d4 {[%emt 0:00:08]} Bxd4 {[%emt 0:00:48]} 7. Qxd4 {[%emt 0:00:03]} d6 {[%emt 0:00:26]} 8. Be2 {[%emt 0:03:34]} O-O {[%emt 0:01:07]} 9. O-O {[%emt 0:03:27]} Be6 {[%emt 0:10:14]} 10. b3 {[%emt 0:04:19]} Nfd7 {[%emt 0:07:48]} 11. Bb2 {[%emt 0:08:33]} Nc6 {[%emt 0:07:12]} 12. Qe3 {[%emt 0:02:52]} Nc5 {[%emt 0:04:42]} 13. f4 {[%emt 0:09:16]} f5 {[%emt 0:05:10]} 14. e5 {[%emt 0:06:45]} Qe7 {[%emt 0:01:57]} 15. exd6 {[%emt 0:02:59]} cxd6 {[%emt 0:00:48]} 16. b4 {[%emt 0:05:25]} Nd7 {[%emt 0:06:06]} 17. b5 {[%emt 0:03:16]} Bf7 {[%emt 0:04:26]} 18. Qd2 {[%emt 0:02:47]} Nd8 {[%emt 0:02:13]} 19. Nd5 {[%emt 0:12:05]} Bxd5 {[%emt 0:01:18]} 20. Qxd5+ {[%emt 0:00:16]} Nf7 {[%emt 0:02:31]} 21. Bd3 {[%emt 0:05:48]} Nf6 {[%emt 0:02:20]} 22. Bxf6 {[%emt 0:02:03]} Qxf6 {[%emt 0:00:06]} 23. Bxf5 {[%emt 0:01:32]} Rfe8 {[%emt 0:00:29]} 24. Rae1 {[%emt 0:01:19]} g6 {[%emt 0:01:57]} 25. Be6 {[%emt 0:01:24]} Rad8 {[%emt 0:03:25]} 26. f5 {[%emt 0:02:07]} g5 {[%emt 0:00:09]} 27. Qxb7 {[%emt 0:00:27]} Re7 {[%emt 0:00:47]} 28. Bxf7+ {[%emt 0:04:50]} Rxf7 {[%emt 0:00:10]} 29. Qd5 {[%emt 0:00:14]} Qc3 {[%emt 0:03:38]} 30. Re7 {[%emt 0:01:44]} Rdf8 {[%emt 0:00:05]} 31. f6 {[%emt 0:01:26]} h6 {[%emt 0:00:37]} 32. Qe4 {[%emt 0:03:39]} Rxe7 {[%emt 0:01:29]} 33. Qxe7 {[%emt 0:00:05]} Rf7 {[%emt 0:00:56]} 34. Qe8+ {[%emt 0:00:05]} 1-0

[Event "2nd Cambridge Open 2024"]
[Site "Cambridge"]
[Date "2024.02.20"]
[Round "3.7"]
[White "McClement, Andrew"]
[Black "Simpson, Ben"]
[Result "1-0"]
[ECO "C78"]
[WhiteElo "2223"]
[BlackElo "1873"]
[Annotator "RC"]
[PlyCount "63"]
[EventDate "2024.02.18"]
[EventType "swiss"]
[EventCountry "ENG"]
[SourceTitle "playchess.com"]
[Source "ChessBase"]
[SourceQuality "1"]
[TimeControl "5400+30"]

1. e4 {[%emt 0:00:02]} e5 {[%emt 0:00:05]} 2. Nf3 {[%emt 0:00:04]} Nc6 {[%emt 0:00:03]} 3. Bb5 {[%emt 0:00:04]} a6 {[%emt 0:00:04]} 4. Ba4 {[%emt 0:00:03]} Nf6 {[%emt 0:00:04]} 5. O-O {[%emt 0:00:08]} b5 {[%emt 0:00:02]} 6. Bb3 {[%emt 0:00:05]} Bc5 {[%emt 0:00:04]} 7. c3 {[%emt 0:00:47]} d6 {[%emt 0:00:11]} 8. d4 {[%emt 0:00:59]} Bb6 {[%emt 0:00:04]} 9. h3 {[%emt 0:00:42]} O-O {[%emt 0:00:16]} 10. Re1 {[%emt 0:02:40]} h6 {[%emt 0:05:19]} 11. a4 {[%emt 0:05:20]} Bb7 {[%emt 0:03:05]} 12. d5 {[%emt 0:11:47]} Ne7 {[%emt 0:00:07]} 13. Nbd2 {[%emt 0:02:09]} c6 {[%emt 0:07:06]} 14. dxc6 {[%emt 0:00:31]} Bxc6 {[%emt 0:00:05]} 15. Bc2 {[%emt 0:06:19]} Ng6 {[%emt 0:07:17]} 16. Nf1 {[%emt 0:04:52]} Nh5 {[%emt 0:20:20]} 17. Nxe5 {[%emt 0:06:29]} Qh4 {[%emt 0:00:20]} 18. Ng4 {[%emt 0:00:08]} f5 {[%emt 0:02:15]} 19. exf5 {[%emt 0:07:22]} Bxg2 {[%emt 0:08:50]} 20. Kxg2 {[%emt 0:15:37]} Ngf4+ {[%emt 0:01:08]} 21. Bxf4 {[%emt 0:00:09]} Nxf4+ {[%emt 0:00:02]} 22. Kf3 {[%emt 0:00:12]} Qxh3+ {[%emt 0:00:14]} 23. Kxf4 {[%emt 0:03:55]} g5+ {[%emt 0:00:44]} 24. Ke4 {[%emt 0:00:03]} Rae8+ {[%emt 0:16:45]} 25. Kd5 {[%emt 0:00:12]} Rxe1 {[%emt 0:04:29]} 26. Qxe1 {[%emt 0:01:31]} Qxg4 {[%emt 0:00:26]} 27. Qe6+ {[%emt 0:00:41]} Rf7 {[%emt 0:01:09]} 28. axb5 {[%emt 0:03:00]} Qf3+ {[%emt 0:00:16]} 29. Be4 {[%emt 0:04:11]} Qxf2 {[%emt 0:00:31]} 30. b4 {[%emt 0:00:34]} Qe2 {[%emt 0:06:59]} 31. c4 {[%emt 0:10:35]} a5 {[%emt 0:00:46]} 32. f6 {[%emt 0:01:50]} 1-0

[Event "2nd Cambridge Open 2024"]
[Site "Cambridge"]
[Date "2024.02.20"]
[Round "3.8"]
[White "Samarakoon, Vivash Ransara"]
[Black "Karamsetty, Jeevan"]
[Result "0-1"]
[ECO "B08"]
[WhiteElo "1839"]
[BlackElo "2211"]
[Annotator "RC"]
[PlyCount "72"]
[EventDate "2024.02.18"]
[EventType "swiss"]
[EventCountry "ENG"]
[SourceTitle "playchess.com"]
[Source "ChessBase"]
[SourceQuality "1"]
[TimeControl "5400+30"]

1. e4 {[%emt 0:00:05]} d6 {[%emt 0:00:06]} 2. d4 {[%emt 0:00:15]} g6 {[%emt 0:00:08]} 3. Nc3 {[%emt 0:02:11]} Bg7 {[%emt 0:00:39]} 4. Bc4 {[%emt 0:01:04]} Nf6 {[%emt 0:01:28]} 5. h3 {[%emt 0:00:31]} O-O {[%emt 0:01:22]} 6. Nf3 {[%emt 0:01:04]} Nxe4 {[%emt 0:07:39]} 7. Nxe4 {[%emt 0:09:14]} d5 {[%emt 0:00:11]} 8. Bd3 {[%emt 0:02:26]} dxe4 {[%emt 0:00:09]} 9. Bxe4 {[%emt 0:00:03]} Nd7 {[%emt 0:13:08]} 10. c3 {[%emt 0:05:38]} Nf6 {[%emt 0:03:19]} 11. Bc2 {[%emt 0:02:09]} b6 {[%emt 0:03:35]} 12. O-O {[%emt 0:02:48]} Bb7 {[%emt 0:00:32]} 13. Re1 {[%emt 0:01:18]} Qd6 {[%emt 0:02:28]} 14. Bg5 {[%emt 0:05:39]} c5 {[%emt 0:01:41]} 15. dxc5 {[%emt 0:12:33]} Qxc5 {[%emt 0:00:31]} 16. Bxf6 {[%emt 0:00:20]} Bxf6 {[%emt 0:00:27]} 17. Qe2 {[%emt 0:00:14]} Rad8 {[%emt 0:07:23]} 18. Rad1 {[%emt 0:01:30]} Bd5 {[%emt 0:04:37]} 19. a3 {[%emt 0:07:49]} Rd6 {[%emt 0:02:57]} 20. Be4 {[%emt 0:11:02]} Bc4 {[%emt 0:15:45]} 21. Qc2 {[%emt 0:03:27]} Rfd8 {[%emt 0:01:52]} 22. Nd2 {[%emt 0:07:48]} Be6 {[%emt 0:01:22]} 23. Nf3 {[%emt 0:15:55]} Qb5 {[%emt 0:01:47]} 24. Qc1 {[%emt 0:02:42]} Rxd1 {[%emt 0:01:17]} 25. Rxd1 {[%emt 0:00:03]} Rxd1+ {[%emt 0:00:05]} 26. Qxd1 {[%emt 0:00:03]} Qxb2 {[%emt 0:00:11]} 27. Qd8+ {[%emt 0:00:33]} Kg7 {[%emt 0:00:02]} 28. g4 {[%emt 0:02:58]} Qxc3 {[%emt 0:02:21]} 29. Kg2 {[%emt 0:03:38]} h6 {[%emt 0:00:39]} 30. Ba8 {[%emt 0:00:00]} Qxa3 {[%emt 0:05:05]} 31. Nd4 {[%emt 0:00:05]} Bxd4 {[%emt 0:05:00]} 32. Qxd4+ {[%emt 0:00:05]} f6 {[%emt 0:00:16]} 33. Be4 {[%emt 0:01:06]} Qd6 {[%emt 0:01:18]} 34. Qa4 {[%emt 0:00:30]} Bd5 {[%emt 0:00:16]} 35. Bxd5 {[%emt 0:00:12]} Qxd5+ {[%emt 0:00:02]} 36. f3 {[%emt 0:00:07]} a5 {[%emt 0:00:25]} 0-1

[Event "2nd Cambridge Open 2024"]
[Site "Cambridge"]
[Date "2024.02.20"]
[Round "3.9"]
[White "Sowray, Peter J"]
[Black "Pereslavtsev, Alexandr"]
[Result "1-0"]
[ECO "E90"]
[WhiteElo "2169"]
[BlackElo "1696"]
[Annotator "RC"]
[PlyCount "97"]
[EventDate "2024.02.18"]
[EventType "swiss"]
[EventCountry "ENG"]
[SourceTitle "playchess.com"]
[Source "ChessBase"]
[SourceQuality "1"]
[TimeControl "5400+30"]

1. c4 {[%emt 0:00:09]} Nf6 {[%emt 0:00:05]} 2. Nf3 {[%emt 0:00:08]} g6 {[%emt 0:00:05]} 3. Nc3 {[%emt 0:00:37]} Bg7 {[%emt 0:00:11]} 4. e4 {[%emt 0:01:14]} d6 {[%emt 0:00:21]} 5. d4 {[%emt 0:01:02]} O-O {[%emt 0:00:25]} 6. Be3 {[%emt 0:00:41]} e5 {[%emt 0:01:17]} 7. dxe5 {[%emt 0:01:38]} dxe5 {[%emt 0:00:09]} 8. Qxd8 {[%emt 0:00:13]} Rxd8 {[%emt 0:00:06]} 9. Nd5 {[%emt 0:00:11]} Na6 {[%emt 0:04:15]} 10. O-O-O {[%emt 0:14:59]} Be6 {[%emt 0:03:06]} 11. Nxf6+ {[%emt 0:11:54]} Bxf6 {[%emt 0:00:10]} 12. Be2 {[%emt 0:00:38]} Bg4 {[%emt 0:05:25]} 13. a3 {[%emt 0:01:59]} c6 {[%emt 0:03:26]} 14. Kc2 {[%emt 0:03:47]} Nc7 {[%emt 0:02:56]} 15. Rxd8+ {[%emt 0:01:34]} Rxd8 {[%emt 0:02:12]} 16. Bxa7 {[%emt 0:01:09]} Ne6 {[%emt 0:03:20]} 17. Ng1 {[%emt 0:03:42]} Bxe2 {[%emt 0:03:24]} 18. Nxe2 {[%emt 0:00:02]} c5 {[%emt 0:00:35]} 19. Bb6 {[%emt 0:04:08]} Rd6 {[%emt 0:05:13]} 20. Ba5 {[%emt 0:00:35]} Nd4+ {[%emt 0:00:55]} 21. Nxd4 {[%emt 0:00:15]} Rxd4 {[%emt 0:00:06]} 22. f3 {[%emt 0:00:50]} Rxc4+ {[%emt 0:00:52]} 23. Bc3 {[%emt 0:00:14]} Ra4 {[%emt 0:08:42]} 24. Rd1 {[%emt 0:00:08]} Ra6 {[%emt 0:05:04]} 25. Rd5 {[%emt 0:03:34]} Rc6 {[%emt 0:00:44]} 26. Bxe5 {[%emt 0:01:47]} Bxe5 {[%emt 0:00:11]} 27. Rxe5 {[%emt 0:00:02]} Kg7 {[%emt 0:01:48]} 28. Re7 {[%emt 0:01:23]} b6 {[%emt 0:01:10]} 29. Kc3 {[%emt 0:01:37]} Rd6 {[%emt 0:03:04]} 30. e5 {[%emt 0:04:10]} Rd1 {[%emt 0:02:54]} 31. e6 {[%emt 0:00:20]} Kf6 {[%emt 0:00:10]} 32. Rxf7+ {[%emt 0:00:31]} Kxe6 {[%emt 0:00:04]} 33. Rxh7 {[%emt 0:01:17]} Rg1 {[%emt 0:00:15]} 34. g3 {[%emt 0:01:29]} Rf1 {[%emt 0:01:10]} 35. f4 {[%emt 0:00:30]} Kd5 {[%emt 0:03:09]} 36. Rd7+ {[%emt 0:01:38]} Kc6 {[%emt 0:41:31]} 37. Rg7 {[%emt 0:02:06]} Rf3+ {[%emt 0:00:00]} 38. Kc2 {[%emt 0:00:27]} Rf2+ {[%emt 0:00:00]} 39. Kb3 {[%emt 0:03:57]} Rxh2 {[%emt 0:00:00]} 40. Rxg6+ {[%emt 0:00:10]} Kb5 {[%emt 0:00:00]} 41. a4+ {[%emt 0:00:15]} Ka5 {[%emt 0:00:00]} 42. Rg8 {[%emt 0:00:20]} Ka6 {[%emt 0:00:00]} 43. f5 {[%emt 0:01:23]} Rf2 {[%emt 0:00:00]} 44. g4 {[%emt 0:01:46]} Rf3+ {[%emt 0:00:00]} 45. Kc4 {[%emt 0:00:57]} Kb7 {[%emt 0:00:00]} 46. Kd5 {[%emt 0:04:42]} Rd3+ {[%emt 0:00:00]} 47. Ke4 {[%emt 0:01:26]} Rd4+ {[%emt 0:00:00]} 48. Ke5 {[%emt 0:00:32]} Kc6 {[%emt 0:00:00]} 49. f6 {[%emt 0:01:17]} 1-0

[Event "2nd Cambridge Open 2024"]
[Site "Cambridge"]
[Date "2024.02.20"]
[Round "3.10"]
[White "Denderski, Piotr"]
[Black "Prince, Alan R"]
[Result "1-0"]
[ECO "A08"]
[WhiteElo "2137"]
[BlackElo "1652"]
[Annotator "RC"]
[PlyCount "97"]
[EventDate "2024.02.18"]
[EventType "swiss"]
[EventCountry "ENG"]
[SourceTitle "playchess.com"]
[Source "ChessBase"]
[SourceQuality "1"]
[TimeControl "5400+30"]

1. Nf3 {[%emt 0:00:03]} Nf6 {[%emt 0:00:07]} 2. g3 {[%emt 0:00:05]} g6 {[%emt 0:00:26]} 3. Bg2 {[%emt 0:00:04]} Bg7 {[%emt 0:00:08]} 4. d3 {[%emt 0:00:03]} d5 {[%emt 0:00:11]} 5. O-O {[%emt 0:00:09]} O-O {[%emt 0:00:07]} 6. Nbd2 {[%emt 0:00:04]} c5 {[%emt 0:01:42]} 7. e4 {[%emt 0:00:07]} Nc6 {[%emt 0:00:26]} 8. h3 {[%emt 0:04:51]} e5 {[%emt 0:00:22]} 9. c3 {[%emt 0:01:36]} h6 {[%emt 0:02:59]} 10. Re1 {[%emt 0:10:24]} Be6 {[%emt 0:02:19]} 11. exd5 {[%emt 0:04:26]} Nxd5 {[%emt 0:01:41]} 12. Nc4 {[%emt 0:00:08]} Qc7 {[%emt 0:02:47]} 13. Qe2 {[%emt 0:07:09]} Rae8 {[%emt 0:04:53]} 14. Bd2 {[%emt 0:07:07]} b5 {[%emt 0:03:53]} 15. Ne3 {[%emt 0:11:17]} f5 {[%emt 0:02:53]} 16. Nh4 {[%emt 0:05:35]} Nxe3 {[%emt 0:04:35]} 17. Qxe3 {[%emt 0:01:26]} Ne7 {[%emt 0:04:17]} 18. f4 {[%emt 0:04:27]} Bd5 {[%emt 0:07:10]} 19. Nxg6 {[%emt 0:04:53]} Bxg2 {[%emt 0:04:31]} 20. Nxe7+ {[%emt 0:00:04]} Rxe7 {[%emt 0:01:54]} 21. Kxg2 {[%emt 0:00:04]} Rfe8 {[%emt 0:00:23]} 22. fxe5 {[%emt 0:09:14]} Rxe5 {[%emt 0:06:47]} 23. Qf3 {[%emt 0:00:04]} Rxe1 {[%emt 0:04:43]} 24. Rxe1 {[%emt 0:00:04]} Rxe1 {[%emt 0:00:18]} 25. Bxe1 {[%emt 0:00:05]} Qe5 {[%emt 0:00:29]} 26. Bf2 {[%emt 0:03:22]} b4 {[%emt 0:02:45]} 27. d4 {[%emt 0:01:38]} cxd4 {[%emt 0:03:18]} 28. Bxd4 {[%emt 0:04:12]} Qe6 {[%emt 0:01:48]} 29. Bxg7 {[%emt 0:10:44]} Kxg7 {[%emt 0:00:03]} 30. b3 {[%emt 0:00:59]} bxc3 {[%emt 0:00:57]} 31. Qxc3+ {[%emt 0:00:03]} Kg6 {[%emt 0:00:39]} 32. Qf3 {[%emt 0:04:57]} Qd7 {[%emt 0:02:51]} 33. h4 {[%emt 0:01:39]} Qd2+ {[%emt 0:00:50]} 34. Qf2 {[%emt 0:01:24]} Qd5+ {[%emt 0:00:20]} 35. Kh2 {[%emt 0:00:03]} a5 {[%emt 0:02:10]} 36. Qe3 {[%emt 0:01:02]} Qc6 {[%emt 0:02:41]} 37. Qd3 {[%emt 0:01:15]} Kf6 {[%emt 0:03:30]} 38. Qd2 {[%emt 0:00:11]} Kg6 {[%emt 0:01:48]} 39. Qxa5 {[%emt 0:01:32]} Qc2+ {[%emt 0:00:20]} 40. Kh3 {[%emt 0:00:36]} Qe2 {[%emt 0:00:54]} 41. Qa8 {[%emt 0:00:44]} Kh5 {[%emt 0:07:24]} 42. Qd5 {[%emt 0:00:50]} Qg4+ {[%emt 0:01:56]} 43. Kh2 {[%emt 0:00:11]} Qe2+ {[%emt 0:00:11]} 44. Qg2 {[%emt 0:00:04]} Qd1 {[%emt 0:00:27]} 45. Qf2 {[%emt 0:00:20]} Kg6 {[%emt 0:00:53]} 46. Kg2 {[%emt 0:00:14]} Qd5+ {[%emt 0:00:22]} 47. Kh2 {[%emt 0:00:06]} Qd1 {[%emt 0:00:18]} 48. b4 {[%emt 0:00:05]} Qb1 {[%emt 0:02:01]} 49. Qd2 {[%emt 0:00:13]} 1-0

[Event "2nd Cambridge Open 2024"]
[Site "Cambridge"]
[Date "2024.02.20"]
[Round "3.11"]
[White "Sonis, Francesco"]
[Black "Golubovic, Boris"]
[Result "1-0"]
[ECO "A16"]
[WhiteElo "2573"]
[BlackElo "2342"]
[Annotator "RC"]
[PlyCount "95"]
[EventDate "2024.02.18"]
[EventType "swiss"]
[EventCountry "ENG"]
[SourceTitle "playchess.com"]
[Source "ChessBase"]
[SourceQuality "1"]
[TimeControl "5400+30"]

1. c4 {[%emt 0:00:38]} Nf6 {[%emt 0:03:12]} 2. Nc3 {[%emt 0:00:07]} g6 {[%emt 0:03:01]} 3. g3 {[%emt 0:01:08]} c6 {[%emt 0:02:13]} 4. Qa4 {[%emt 0:06:12]} Bg7 {[%emt 0:02:29]} 5. Bg2 {[%emt 0:00:36]} O-O {[%emt 0:00:55]} 6. e4 {[%emt 0:00:20]} d6 {[%emt 0:14:07]} 7. Nge2 {[%emt 0:00:13]} c5 {[%emt 0:01:22]} 8. O-O {[%emt 0:03:17]} Nc6 {[%emt 0:00:18]} 9. d3 {[%emt 0:00:45]} a6 {[%emt 0:01:16]} 10. Qd1 {[%emt 0:00:21]} Rb8 {[%emt 0:00:40]} 11. a4 {[%emt 0:07:09]} Bg4 {[%emt 0:07:27]} 12. f3 {[%emt 0:00:14]} Bd7 {[%emt 0:00:27]} 13. Be3 {[%emt 0:00:20]} Ne8 {[%emt 0:09:26]} 14. Rf2 {[%emt 0:19:33]} Nc7 {[%emt 0:02:55]} 15. d4 {[%emt 0:04:26]} cxd4 {[%emt 0:02:53]} 16. Nxd4 {[%emt 0:00:03]} Nxd4 {[%emt 0:00:27]} 17. Bxd4 {[%emt 0:00:02]} Bxd4 {[%emt 0:02:08]} 18. Qxd4 {[%emt 0:00:04]} Ne6 {[%emt 0:00:29]} 19. Qe3 {[%emt 0:00:37]} a5 {[%emt 0:12:05]} 20. f4 {[%emt 0:08:09]} Nc5 {[%emt 0:00:22]} 21. f5 {[%emt 0:03:50]} Bc6 {[%emt 0:07:44]} 22. e5 {[%emt 0:07:41]} Nd7 {[%emt 0:04:57]} 23. exd6 {[%emt 0:06:23]} exd6 {[%emt 0:00:22]} 24. Rd1 {[%emt 0:06:54]} Re8 {[%emt 0:05:26]} 25. Qf4 {[%emt 0:03:02]} g5 {[%emt 0:04:20]} 26. Qxd6 {[%emt 0:01:44]} Nf6 {[%emt 0:03:19]} 27. Bxc6 {[%emt 0:05:27]} bxc6 {[%emt 0:02:21]} 28. Qxc6 {[%emt 0:00:05]} Qe7 {[%emt 0:00:14]} 29. Qd6 {[%emt 0:06:30]} Qxd6 {[%emt 0:02:06]} 30. Rxd6 {[%emt 0:00:01]} Re1+ {[%emt 0:00:09]} 31. Rf1 {[%emt 0:01:57]} Rxf1+ {[%emt 0:00:17]} 32. Kxf1 {[%emt 0:00:02]} Kg7 {[%emt 0:00:05]} 33. Nb5 {[%emt 0:00:23]} Ng4 {[%emt 0:01:41]} 34. Kg1 {[%emt 0:02:48]} Ne3 {[%emt 0:02:06]} 35. f6+ {[%emt 0:02:43]} Kg6 {[%emt 0:00:07]} 36. b3 {[%emt 0:00:04]} Nf5 {[%emt 0:02:11]} 37. Rd5 {[%emt 0:02:03]} g4 {[%emt 0:00:21]} 38. c5 {[%emt 0:00:10]} Kxf6 {[%emt 0:00:44]} 39. c6 {[%emt 0:00:05]} Ne7 {[%emt 0:01:02]} 40. c7 {[%emt 0:01:15]} Rb6 {[%emt 0:02:01]} 41. Rd6+ {[%emt 0:00:04]} Rxd6 {[%emt 0:00:04]} 42. Nxd6 {[%emt 0:00:03]} Ke5 {[%emt 0:00:07]} 43. c8=Q {[%emt 0:00:09]} Nxc8 {[%emt 0:00:03]} 44. Nxc8 {[%emt 0:00:04]} Kd4 {[%emt 0:00:04]} 45. Nd6 {[%emt 0:00:03]} Kc3 {[%emt 0:00:07]} 46. Nc4 {[%emt 0:00:03]} Kxb3 {[%emt 0:00:08]} 47. Nxa5+ {[%emt 0:00:03]} Kxa4 {[%emt 0:00:07]} 48. Nc4 {[%emt 0:00:03]} 1-0

[Event "2nd Cambridge Open 2024"]
[Site "Cambridge"]
[Date "2024.02.20"]
[Round "3.12"]
[White "Turner, Matthew J"]
[Black "Vardanyan, Aras"]
[Result "1-0"]
[ECO "D94"]
[WhiteElo "2448"]
[BlackElo "2284"]
[Annotator "TA"]
[PlyCount "75"]
[EventDate "2024.02.18"]
[EventType "swiss"]
[EventCountry "ENG"]
[SourceTitle "playchess.com"]
[Source "ChessBase"]
[SourceQuality "1"]
[TimeControl "5400+30"]

{[%evp 17,75,-19,0,-19,-13,-40,-32,-42,-37,-29,-30,-23,-25,-75,-45,-51,-60,-55,-7,-64,-47,-72,-25,-35,25,-15,-18,-14,-34,-28,-17,-117,-93,-111,-107,-117,-103,-130,-127,-161,-166,-191,-169,-297,-292,-306,-300,-300,-300,-287,6,5,1350,1251,5493,4974,29983,29984,29984,710]} 1. d4 {[%emt 0:00:07]} Nf6 {[%emt 0:00:12]} 2. Nf3 {[%emt 0:00:13]} c5 {[%emt 0:00:11]} 3. e3 {[%emt 0:04:57]} g6 {[%emt 0:00:35]} 4. c4 {[%emt 0:01:28]} Bg7 {[%emt 0:00:19]} 5. Nc3 {[%emt 0:00:04]} O-O {[%emt 0:00:19]} 6. Be2 {[%emt 0:01:17]} cxd4 {[%emt 0:01:01]} 7. exd4 {[%emt 0:00:06]} d5 {[%emt 0:00:09]} 8. h3 {[%emt 0:02:38]} Nc6 {[%emt 0:01:38]} 9. O-O {[%emt 0:03:05]} Be6 {[%emt 0:06:00]} 10. Ng5 {[%emt 0:11:06]} Bf5 {[%emt 0:09:48]} 11. g4 {[%emt 0:02:11]} Bc8 {[%emt 0:01:47]} 12. Be3 {[%emt 0:01:11] Black is slightly better.} h6 {[%emt 0:10:33][%cal Bh7h6,Bh6h5][%mdl 32]} 13. Nf3 {[%emt 0:00:48]} dxc4 {[%emt 0:00:29]} 14. Bxc4 {[%emt 0:01:47]} h5 {[%emt 0:00:37]} 15. Nh2 {[%emt 0:06:51]} (15. Ne5 $11) 15... Qd7 {[%emt 0:07:00][%cal Rh5g4]} 16. d5 {[%emt 0:04:30]} Ne5 {[%emt 0:07:15]} 17. Bb5 {[%emt 0:00:38]} Qc7 {[%emt 0:01:45]} (17... Qd6 $15 18. f4 Ned7) 18. Be2 {[%emt 0:01:25]} (18. Bf4 $11 a6 (18... hxg4 19. hxg4 a6 20. Re1 $11) 19. Ba4) 18... hxg4 {[%emt 0:00:30]} 19. hxg4 {[%emt 0:00:22]} Bd7 {[%emt 0:01:58]} ({Better is} 19... Nc4 $17 {White must now prevent ...Nxe3.} 20. Bc1 Rd8) 20. Rc1 {[%emt 0:03:25][%cal Oc3e4]} Rad8 {[%emt 0:03:09]} (20... Rac8 $15) 21. f4 {[%emt 0:13:54]} Nc4 {[%emt 0:03:08]} 22. Bd4 {[%emt 0:03:56]} Nd6 {[%emt 0:04:30] Prevents Ne4} (22... Nxb2 $6 23. Qb3 Nxg4 24. Bxg7 (24. Bxa7 Nxh2 25. Kxh2 b5 $15) 24... Qc5+ 25. Kh1 Kxg7 26. Qxb2 $14 (26. Nxg4 Rh8+ 27. Kg2 Bxg4 $14)) 23. Ne4 {[%emt 0:16:15]} Qb8 {[%emt 0:03:26]} 24. Nxf6+ {[%emt 0:01:02]} (24. Nc5 $11) 24... exf6 $17 {[%emt 0:01:12]} 25. Bd3 {[%emt 0:03:41]} Rfe8 {[%emt 0:02:58]} 26. Qf3 {[%emt 0:00:36]} Nb5 {[%emt 0:02:54]} 27. Bf2 {[%emt 0:00:36] [#]} f5 $1 {[%emt 0:02:32]} 28. gxf5 {[%emt 0:02:14][%cal Bg4f5,Bf5g6,Bg6f7][%mdl 32]} Nd4 {[%emt 0:00:13]} 29. Bxd4 {[%emt 0:00:19]} Bxd4+ {[%emt 0:00:03]} 30. Kh1 {[%emt 0:00:10]} (30. Kg2 {was forced.} Re3 (30... Bxb2 31. fxg6 fxg6 32. Rc2 $16) (30... gxf5 31. Qh5 $11) (30... Bxf5 31. Bxf5 gxf5 32. Rcd1 $11) 31. Qd1) 30... Re3 $19 {[%emt 0:00:23]} (30... Bxb2 $2 31. fxg6 f5 (31... Bxc1 $2 32. Qh5 $18) 32. Qh5 $18) (30... gxf5 31. Qh5 Kf8 (31... Bxb2 $2 32. Qh6 $18) (31... Qd6 32. Nf3 $16) 32. Rcd1 $11 (32. Bxf5 Bxf5 33. Qxf5 Qd6 $15)) (30... Bxf5 31. Bxf5 gxf5 32. Rcd1 $14) 31. Qd1 {[%emt 0:00:14]} Qd6 {[%emt 0:04:22]} (31... Bxb2 32. fxg6 Qd6 (32... Bxc1 33. Qh5 $11) 33. Qh5 $11) (31... gxf5 32. Qh5 Kf8 (32... Rxd3 33. Rg1+ Kf8 34. Qh6+ Ke7 35. Rce1+ $11) (32... Bxb2 $2 33. Qh6 $18) 33. Bxf5 $15) 32. fxg6 {[%emt 0:04:22]} Qxd5+ {[%emt 0:02:53]} 33. Rf3 {[%emt 0:00:10]} Bxb2 $2 {[%emt 0:09:33] A strong pair of Bishops.} (33... Bc6 $19 34. gxf7+ Kf8 (34... Kxf7 35. Bc4 $16) (34... Qxf7 35. Rxc6 bxc6 36. Rxe3 $11) 35. Rxc6 Qxc6) 34. Bc4 $40 {[%emt 0:00:43][%mdl 128] Black needs to defend precisely.} Qe4 {[%emt 0:02:11][%mdl 8192]} (34... Qd4 $11) 35. gxf7+ $18 {[%emt 0:02:05]} (35. Bxf7+ Kg7 36. Bd5 Qe7 37. Rxe3 Qxe3 $11) 35... Kg7 {[%emt 0:03:30][%cal Bg8g7,Bg7f8,Bf8e7][%mdl 32]} 36. Qg1+ {[%emt 0:01:40]} (36. Bd3 $2 Rxd3 37. Qxd3 Qxd3 38. Rg1+ Qg6 (38... Kxf7 39. Rxd3 Bc6+ 40. Rf3 $17) 39. Rxg6+ (39. f5 $2 Qxg1+ 40. Kxg1 Kxf7 $19) 39... Kxg6 $19) 36... Kf8 {[%emt 0:01:03]} 37. Qg8+ {[%emt 0:00:28]} (37. Qxe3 Qxe3 38. Rxe3 Bc6+ 39. Kg1 (39. Nf3 Bxc1 40. Rc3 Bd2 $17) 39... Bxc1 $11) 37... Ke7 {[%emt 0:00:08] [#]} 38. Qxd8+ $3 {[%emt 0:00:15][%mdl 512] What a bad dream for Black.   Weighted Error Value: White=0.28 (precise) /Black=0.53.  Loses game:     	---       	Black=1      Missed win:     	---       	Black=1      Mistake:       	White=4     	Black=3      Inaccurate:     	White=2     	Black=2      OK:         	White=9     	Black=9      Best:        	White=2     	Black=2      Strong:       	---       	Black=1} 1-0